fUSD/lending_fUSD_20240203
["ID","MTS","AMOUNT","RATE_DAILY","PERIOD"]
[313234108,1706983832134,-343313.5048309,0.00022997,2]
[313234110,1706983832148,-1146.12953648,0.00022997,2]
[313234113,1706983832159,-818.99,0.00022997,2]
[313234116,1706983832179,-161954.30658038,0.00022997,2]
[313234118,1706983832188,-248.08555624,0.00022998,2]
[313234119,1706983832197,-155.26201102,0.00022998,2]
[313234120,1706983832206,-155.4068837,0.00022998,2]
[313234121,1706983832215,-159.38545617,0.00022998,2]
[313234122,1706983832225,-4712.24174168,0.00022998,2]
[313234123,1706983832235,-155.44901312,0.00022998,2]
[313234124,1706983832244,-205.43932251,0.00022998,2]
[313234125,1706983832254,-160.80738862,0.00022998,2]
[313234126,1706983832264,-400.0,0.00022998,2]
[313234127,1706983832273,-358.52425652,0.00022998,2]
[313234128,1706983832283,-2253.20492371,0.00022998,2]
[313234129,1706983832292,-253136.55538428,0.00022998,2]
[313234130,1706983832312,-1498.83714,0.00022998,2]
[313234131,1706983832323,-9351.56556021,0.00022998,2]
[313234132,1706983832335,-1802.048324,0.00022998,2]
[313234133,1706983832347,-1967.30599068,0.00022998,2]
[313234134,1706983832358,-11460.30034047,0.00022998,2]
[313234135,1706983832370,-3698.8629852,0.00022998,2]
[313234136,1706983832394,-865.14657609,0.00022998,2]
[313234137,1706983832405,-1050.64516846,0.00022998,2]
[313234138,1706983832417,-1191.63461506,0.00022998,2]
[313234139,1706983832428,-481.13236969,0.00022998,2]
[313234140,1706983832439,-590.0394705,0.00022998,2]
[313234141,1706983832456,-359.66464337,0.00022998,2]
[313234142,1706983832468,-25847.065778,0.00022998,2]
[313234143,1706983832481,-1081.98588942,0.00022998,2]
[313234144,1706983832491,-873.90332348,0.00022998,2]
[313234145,1706983832501,-150.0,0.00022998,2]
[313234146,1706983832511,-202.59892777,0.00022999,2]
[313234147,1706983832521,-255.11217212,0.00022999,2]
[313234148,1706983832530,-191.36685827,0.00022999,2]
[313234149,1706983832540,-1060.48756115,0.00022999,2]
[313234150,1706983832549,-268.80974085,0.00022999,2]
[313234151,1706983832559,-155.3699649,0.00022999,2]
[313234152,1706983832568,-167.50826647,0.00022999,2]
[313234153,1706983832578,-396.53188178,0.00022999,2]
[313234154,1706983832589,-207.43718388,0.00022999,2]
[313234155,1706983832598,-308.69448396,0.00022999,2]
[313234156,1706983832609,-202.51790807,0.00022999,2]
[313234157,1706983832619,-18380.03397393,0.00022999,2]
[313234158,1706983832629,-2639.68606581,0.00022999,2]
[313234159,1706983832638,-160.92820506,0.00022999,2]
[313234160,1706983832647,-156.06033092,0.00022999,2]
[313234161,1706983832656,-426.75700914,0.00022999,2]
[313234162,1706983832667,-428.25697223,0.00022999,2]
[313234163,1706983832677,-300.02,0.00022999,2]
[313234164,1706983832686,-3307.99676522,0.00022999,2]
[313234165,1706983832696,-416.43865149,0.00022999,10]
[313234166,1706983832705,-150.0,0.00022999,2]
[313234167,1706983832714,-150.0,0.00022999,2]
[313234168,1706983832723,-150.0,0.00022999,2]
[313234169,1706983832732,-182.54050602,0.00022999,2]
[313234170,1706983832741,-3093.94265419,0.00023,3]
[313234171,1706983832753,-973.32883742,0.00023,3]
[313234172,1706983832764,-4302.67886653,0.00023,3]
[313234173,1706983832775,-1003.29,0.00023,3]
[313234174,1706983832785,-41222.10508229,0.00023,3]
[313234175,1706983832797,-311.44051922,0.00023,3]
[313234176,1706983832808,-278.60878409,0.00023,3]
[313234177,1706983832825,-250.0,0.00023,3]
[313234178,1706983832869,-11080.29459186,0.00023,3]
[313234179,1706983832888,-2431.44335424,0.00023,3]
[313234180,1706983832900,-254.21000005,0.00023,3]
[313234181,1706983832911,-311.08000015,0.00023,3]
[313234182,1706983832922,-409.47900183,0.00023,3]
[313234183,1706983832934,-272.72700117,0.00023,3]
[313234184,1706983832945,-407.53,0.00023,3]
[313234200,1706983837597,-1261.7050684,0.000229,2]
[313234201,1706983837618,-3698.23679594,0.000229,2]
[313234202,1706983837631,-1711.60859331,0.000229,2]
[313234203,1706983837644,-1038.57916476,0.000229,2]
[313234204,1706983837656,-2307.25714262,0.000229,2]
[313234205,1706983837667,-2236.66124889,0.00023,3]
[313234206,1706983837710,-1118.03028538,0.00023,3]
[313234207,1706983837775,-4307.1972,0.00023,3]
[313234208,1706983837837,-1670.64200239,0.00023,3]
[313234218,1706983840149,-257.86534669,0.00022999,2]
[313234219,1706983840161,-1767.16516679,0.00022999,2]
[313234220,1706983840172,-1080.53,0.00022999,2]
[313234221,1706983840943,-202.43625174,0.00022999,2]
[313234222,1706983840952,-2182.10108767,0.00023,3]
[313234223,1706983841058,-1156.2,0.00023,3]
[313234242,1706983842610,-674.39633457,0.00023,3]
[313234243,1706983842671,-592.87377417,0.00023,3]
[313234257,1706983845568,-546.64030741,0.00022999,2]
[313234258,1706983845579,-339.18297734,0.00022999,2]
[313234259,1706983845623,-309.18,0.00022999,2]
[313234260,1706983845683,-2112.99348047,0.00022999,2]
[313234261,1706983845693,-188076.26254118,0.00023,3]
[313234262,1706983845702,-103104.12404956,0.00023,2]
[313234273,1706983846199,-473.11364916,0.00023,2]
[313234274,1706983846215,-459.91149139,0.00023,2]
[313234275,1706983846226,-550.69565633,0.00023,2]
[313234276,1706983913464,219.55873124,0.00021847,7]
[313234279,1706984061855,152.46,0.00020423,2]
[313234280,1706984239405,158.99,0.0002237,2]
[313234281,1706984404247,206.0,0.00021825,2]
[313234282,1706984405050,436.44,0.00022087,2]
[313234283,1706984413319,157.64,0.00022089,2]
[313234284,1706984476155,550.0,0.00022,3]
[313234288,1706984651230,152.46,0.00020144,2]
[313234292,1706984874863,151.0204,0.00022502,3]
[313234294,1706984878126,151.0204,0.00022502,3]
[313234295,1706984878957,151.0204,0.00022502,3]
[313234296,1706984879733,151.0204,0.00022502,3]
[313234297,1706984880506,151.0204,0.00022502,3]
[313234298,1706984881241,151.0204,0.00022502,3]
[313234299,1706984882014,151.0204,0.00022502,3]
[313234300,1706984882781,151.0204,0.00022502,3]
[313234302,1706984883576,151.0204,0.00022502,3]
[313234303,1706984884370,151.0204,0.00022502,3]
[313234304,1706984885186,151.0204,0.00022502,3]
[313234305,1706984885966,80.39107229,0.00022502,3]
[313234306,1706984885997,70.62932771,0.00022502,3]
[313234307,1706984886742,151.0204,0.00022502,3]
[313234308,1706984887752,151.0204,0.00022502,3]
[313234309,1706984888517,151.0204,0.00022502,3]
[313234310,1706984889382,151.0204,0.00022502,3]
[313234311,1706984890207,151.0204,0.00022502,3]
[313234312,1706984891003,10.69867229,0.00022502,3]
[313234313,1706984891030,140.32172771,0.00022502,3]
[313234315,1706984892881,151.0204,0.00022502,3]
[313234316,1706984893715,151.0204,0.00022502,3]
[313234318,1706984964093,157.64,0.00021997,2]
[313234319,1706984970451,160.0204,0.00022502,3]
[313234354,1706985031748,-155.0,0.00022597,2]
[313234356,1706985031757,-500.0,0.00022598,2]
[313234358,1706985031767,-301.9078761,0.00022602,2]
[313234360,1706985031778,-806.0921239,0.00022602,2]
[313234363,1706985031788,-563.56,0.00022609,2]
[313234365,1706985031797,-240.6346765,0.00022629,2]
[313234367,1706985031806,-336.9409953,0.00022629,2]
[313234368,1706985031815,-1000.0,0.000227,2]
[313234370,1706985031824,-163.87452071,0.00022725,2]
[313234372,1706985031833,-163.87452071,0.00022813,2]
[313234374,1706985031843,-200.0,0.00022815,2]
[313234376,1706985031852,-800.0,0.00022815,2]
[313234379,1706985031861,-150.0,0.00022815,2]
[313234380,1706985031870,-200.0,0.00022816,2]
[313234383,1706985031880,-762.26,0.00022816,2]
[313234384,1706985031889,-499.99,0.00022816,2]
[313234386,1706985031898,-200.0,0.00022816,2]
[313234388,1706985031907,-800.0,0.00022816,2]
[313234390,1706985031916,-4268.31,0.00022816,2]
[313234391,1706985031925,-1000.0,0.00022885,2]
[313234392,1706985031934,-1000.0,0.00022885,2]
[313234393,1706985031943,-1000.0,0.00022885,2]
[313234394,1706985031954,-1000.0,0.00022885,2]
[313234395,1706985031963,-1000.0,0.00022885,2]
[313234396,1706985031972,-1000.0,0.00022885,2]
[313234397,1706985031983,-1000.0,0.00022885,2]
[313234398,1706985031993,-1000.0,0.00022885,2]
[313234399,1706985032002,-180.3842,0.00022885,2]
[313234400,1706985032014,-1000.0,0.00022899,2]
[313234401,1706985032024,-2201.9674,0.00022899,2]
[313234402,1706985032033,-3750.7742,0.00022899,2]
[313234403,1706985032042,-426.8997,0.00022899,2]
[313234404,1706985032051,-24750.0895,0.00022899,2]
[313234405,1706985032060,-221.48933488,0.00022899,2]
[313234406,1706985032069,-1307.62046558,0.000229,2]
[313234407,1706985032079,-163.87452071,0.000229,2]
[313234408,1706985032089,-310.37737208,0.000229,2]
[313234409,1706985032098,-5000.0,0.000229,2]
[313234410,1706985032107,-153.18424467,0.000229,2]
[313234411,1706985032119,-479.55078064,0.000229,2]
[313234412,1706985032128,-6678.25784334,0.000229,2]
[313234413,1706985032140,-399.84882226,0.000229,2]
[313234414,1706985032150,-733.32801252,0.000229,6]
[313234415,1706985032159,-1974.75072179,0.000229,2]
[313234416,1706985032170,-1886.99294106,0.000229,2]
[313234417,1706985032178,-163.49976788,0.000229,2]
[313234418,1706985032188,-222.84629183,0.00022949,2]
[313234419,1706985032198,-14733.11368095,0.00022988,2]
[313234420,1706985032209,-170.59629016,0.0002299,2]
[313234421,1706985032218,-170.59629016,0.0002299,2]
[313234422,1706985032230,-345.084011,0.00022997,2]
[313234423,1706985032240,-182.57433695,0.00022998,2]
[313234424,1706985032250,-158.90038408,0.00022998,2]
[313234425,1706985032259,-330.669925,0.00022998,2]
[313234426,1706985032269,-227.88141945,0.00022998,2]
[313234427,1706985032278,-10526.77414532,0.00022998,2]
[313234428,1706985032287,-158.77192459,0.00022998,2]
[313234429,1706985032296,-387.97709514,0.00022998,2]
[313234430,1706985032305,-156.17863887,0.00022998,2]
[313234431,1706985032314,-1756.62144156,0.00022998,2]
[313234432,1706985032323,-2850.64964616,0.00022998,2]
[313234433,1706985032332,-286.90133175,0.00022998,2]
[313234434,1706985032341,-355.38062368,0.00022998,2]
[313234435,1706985032350,-467.04208328,0.00022998,2]
[313234436,1706985032359,-4281.45374729,0.00022998,2]
[313234437,1706985032369,-1873.77811087,0.00022998,5]
[313234438,1706985032378,-376.58623053,0.00022998,2]
[313234439,1706985032391,-627.49002852,0.00022998,2]
[313234440,1706985032400,-151.0204,0.00022998,3]
[313234441,1706985032410,-151.0204,0.00022998,3]
[313234442,1706985032419,-151.0204,0.00022998,3]
[313234443,1706985032427,-151.0204,0.00022998,3]
[313234444,1706985032436,-151.0204,0.00022998,3]
[313234445,1706985032445,-151.0204,0.00022998,3]
[313234446,1706985032454,-151.0204,0.00022998,3]
[313234447,1706985032463,-151.0204,0.00022998,3]
[313234448,1706985032472,-151.0204,0.00022998,3]
[313234449,1706985032481,-151.0204,0.00022998,3]
[313234450,1706985032490,-151.0204,0.00022998,3]
[313234451,1706985032498,-151.0204,0.00022998,3]
[313234452,1706985032507,-151.0204,0.00022998,3]
[313234453,1706985032516,-151.0204,0.00022998,3]
[313234454,1706985032525,-151.0204,0.00022998,3]
[313234455,1706985032534,-151.0204,0.00022998,3]
[313234456,1706985032542,-151.0204,0.00022998,3]
[313234457,1706985032551,-151.0204,0.00022998,3]
[313234458,1706985032560,-151.0204,0.00022998,3]
[313234459,1706985032570,-151.0204,0.00022998,3]
[313234460,1706985032579,-151.0204,0.00022998,3]
[313234461,1706985032588,-151.0204,0.00022998,3]
[313234462,1706985032597,-151.0204,0.00022998,3]
[313234463,1706985032606,-151.0204,0.00022998,3]
[313234464,1706985032616,-151.0204,0.00022998,3]
[313234465,1706985032626,-151.0204,0.00022998,3]
[313234466,1706985032635,-151.0204,0.00022998,3]
[313234467,1706985032644,-151.0204,0.00022998,3]
[313234468,1706985032654,-151.0204,0.00022998,3]
[313234469,1706985032665,-151.0204,0.00022998,3]
[313234470,1706985032675,-55.93418753,0.00022998,3]
[313234471,1706985032690,-95.08621247,0.00022998,3]
[313234472,1706985032699,-151.0204,0.00022998,3]
[313234473,1706985032709,-151.0204,0.00022998,3]
[313234474,1706985032719,-151.0204,0.00022998,3]
[313234475,1706985032729,-151.0204,0.00022998,3]
[313234476,1706985032738,-151.0204,0.00022998,3]
[313234477,1706985032748,-151.0204,0.00022998,3]
[313234478,1706985032757,-151.0204,0.00022998,3]
[313234479,1706985032767,-151.0204,0.00022998,3]
[313234480,1706985032776,-151.0204,0.00022998,3]
[313234481,1706985032785,-151.0204,0.00022998,3]
[313234482,1706985032795,-1438.00159283,0.00022999,2]
[313234483,1706985032803,-8133.44358316,0.00022999,2]
[313234484,1706985032831,-14581.24333021,0.00022999,2]
[313234485,1706985032847,-3677.26281111,0.00022999,2]
[313234486,1706985037744,-266.29936235,0.00022999,2]
[313234487,1706985037760,-46018.32990978,0.00022999,2]
[313234488,1706985037774,-611.96941275,0.00022999,2]
[313234489,1706985037806,-3997.85776914,0.00022999,2]
[313234490,1706985037877,-838.226,0.00022999,2]
[313234491,1706985037890,-406.46916604,0.00022999,2]
[313234492,1706985037930,-1631.5164132,0.00022999,2]
[313234493,1706985037942,-636.9005323,0.00022999,2]
[313234494,1706985037953,-2158.24505822,0.00022999,2]
[313234495,1706985037995,-39851.70438812,0.00022999,2]
[313234496,1706985038008,-42545.5532522,0.00022999,2]
[313234497,1706985038061,-1703.428056,0.00022999,2]
[313234498,1706985038073,-326.45,0.00022999,2]
[313234499,1706985038086,-481.70408771,0.00022999,2]
[313234509,1706985038271,-729.74969985,0.00022999,2]
[313234512,1706985038284,-30601.45336061,0.00022999,2]
[313234514,1706985038298,-1694.50890862,0.00022999,2]
[313234696,1706985041009,-6721.28522,0.00022999,2]
[313234697,1706985041120,-1651.6600008,0.00022999,2]
[313234703,1706985042731,-2246.02631004,0.00022999,2]
[313234704,1706985042786,-381.31908281,0.00022999,2]
[313234705,1706985042808,-464.9119998,0.00022999,2]
[313234706,1706985042822,-14.23261734,0.00022999,2]
[313234707,1706985042831,-392.66407142,0.00022999,10]
[313234708,1706985042841,-919.0,0.00023,2]
[313234709,1706985042850,-3606.83294573,0.00023,3]
[313234710,1706985042862,-15867.87090026,0.00023,3]
[313234711,1706985042874,-2725.42000001,0.00023,3]
[313234712,1706985042898,-16263.3128002,0.00023,3]
[313234713,1706985042909,-1405.81876783,0.00023,3]
[313234714,1706985042937,-18671.56318022,0.00023,3]
[313234715,1706985042961,-80436.68986585,0.00023,3]
[313234716,1706985042971,-212066.16790702,0.00023,2]
[313234717,1706985042983,-735.31160014,0.00023,2]
[313234718,1706985043018,-388.93617367,0.00023,2]
[313234722,1706985045960,-214.0835331,0.00022999,2]
[313234723,1706985045970,-826.0,0.00023,2]
[313234724,1706985045980,-122437.0209577,0.00023,2]
[313234731,1706985168877,76.40707229,0.00020052,2]
[313234732,1706985168902,76.05292771,0.00020052,2]
[313234736,1706985274599,168.4,0.00021924,10]
[313234738,1706985384593,-496.38960324,0.00022528,2]
[313234739,1706985384616,-721.76,0.00022633,2]
[313234740,1706985384641,-781.85039676,0.000227,2]
[313234741,1706985385500,-218.14960324,0.000227,2]
[313234742,1706985385523,-150.0,0.00022727,2]
[313234743,1706985385543,-150.0,0.00022769,2]
[313234744,1706985385565,-445.69258364,0.00022769,2]
[313234745,1706985385586,-1036.15781312,0.0002277,2]
[313234746,1706985385983,-2000.0,0.0002277,2]
[313234747,1706985386399,-2000.0,0.0002277,2]
[313234748,1706985386889,-2000.0,0.0002277,2]
[313234749,1706985387894,-2000.0,0.0002277,2]
[313234750,1706985388482,-2000.0,0.0002277,2]
[313234751,1706985388570,-2000.0,0.0002277,2]
[313234752,1706985389003,-2000.0,0.0002277,2]
[313234753,1706985389760,-2000.0,0.0002277,2]
[313234754,1706985390282,-2000.0,0.0002277,2]
[313234755,1706985435834,157.64,0.00021924,2]
[313234756,1706985447015,-492.4677124,0.00022668,2]
[313234757,1706985447039,-723.85,0.00022768,2]
[313234758,1706985447063,-783.6822876,0.00022769,2]
[313234759,1706985447614,-2000.0,0.00022769,2]
[313234760,1706985447952,-2000.0,0.00022769,2]
[313234761,1706985448412,-2000.0,0.00022769,2]
[313234762,1706985448831,-2000.0,0.00022769,2]
[313234763,1706985449173,-2000.0,0.00022769,2]
[313234764,1706985449508,-2000.0,0.00022769,2]
[313234765,1706985449871,-2000.0,0.00022769,2]
[313234766,1706985450216,-2000.0,0.00022769,2]
[313234767,1706985450557,-2000.0,0.00022769,2]
[313234768,1706985450878,-2000.0,0.00022769,2]
[313234769,1706985451209,-2000.0,0.00022769,2]
[313234770,1706985451541,-2000.0,0.00022769,2]
[313234771,1706985451848,-2000.0,0.00022769,2]
[313234772,1706985452178,-2000.0,0.00022769,2]
[313234773,1706985452780,-2000.0,0.00022769,2]
[313234774,1706985453195,-2000.0,0.00022769,2]
[313234775,1706985453533,-2000.0,0.00022769,2]
[313234776,1706985453898,-2000.0,0.00022769,2]
[313234777,1706985454238,-1782.36866724,0.00022769,2]
[313234778,1706985454261,-217.63133276,0.0002277,2]
[313234779,1706985454607,-2000.0,0.0002277,2]
[313234780,1706985455270,-2000.0,0.0002277,2]
[313234781,1706985455663,-2000.0,0.0002277,2]
[313234782,1706985456127,-2000.0,0.0002277,2]
[313234783,1706985456555,-2000.0,0.0002277,2]
[313234784,1706985484176,206.0,0.00022007,2]
[313234785,1706985492925,-2000.0,0.0002277,2]
[313234786,1706985493434,-2000.0,0.0002277,2]
[313234787,1706985493972,-2000.0,0.0002277,2]
[313234788,1706985494508,-2000.0,0.0002277,2]
[313234789,1706985495048,-2000.0,0.0002277,2]
[313234790,1706985496315,-2000.0,0.0002277,2]
[313234791,1706985496873,-2000.0,0.0002277,2]
[313234792,1706985619049,152.46,0.00020023,2]
[313234793,1706985906866,157.64,0.00021878,2]
[313234794,1706985910730,1000.0,0.00021878,2]
[313234795,1706986011878,-58842.36,0.00022542,2]
[313234796,1706986029953,-1000.0,0.00022542,2]
[313234797,1706986039643,-1000.0,0.00022542,2]
[313234798,1706986047991,75.87707229,0.00019948,2]
[313234799,1706986048015,76.58292771,0.00019948,2]
[313234800,1706986054882,-1000.0,0.00022542,2]
[313234801,1706986063697,-500.0,0.00022542,2]
[313234802,1706986086151,-150.0,0.00022542,2]
[313234837,1706986231952,-928.53687171,0.000226,2]
[313234840,1706986231966,-950.46312829,0.000226,2]
[313234842,1706986231975,-250.26530839,0.00022629,2]
[313234844,1706986231985,-861.0,0.00022672,2]
[313234846,1706986231995,-150.0,0.00022738,2]
[313234848,1706986232006,-150.0,0.00022739,2]
[313234849,1706986232016,-150.0,0.0002274,2]
[313234850,1706986232026,-150.0,0.00022757,2]
[313234851,1706986232035,-150.0,0.00022764,2]
[313234852,1706986232046,-14578.93092082,0.00022769,2]
[313234853,1706986232058,-16589.73718889,0.00022769,2]
[313234854,1706986232075,-499.95,0.00022769,2]
[313234855,1706986232087,-653.000008,0.00022769,2]
[313234856,1706986232099,-886.0,0.00022769,2]
[313234857,1706986232111,-792.38188229,0.00022769,2]
[313234858,1706986232120,-1942.46408324,0.0002277,2]
[313234859,1706986232132,-1031.76632145,0.0002277,2]
[313234860,1706986232144,-641.78023561,0.0002277,2]
[313234861,1706986232159,-383.9893597,0.0002277,2]
[313234862,1706986232169,-499.99,0.0002277,2]
[313234863,1706986232180,-514.09591693,0.0002277,2]
[313234877,1706986232624,-35.42182675,0.0002277,2]
[313234878,1706986232635,-164.70225632,0.0002277,2]
[313234879,1706986232645,-150.0,0.00022772,2]
[313234880,1706986232654,-254.53226998,0.000228,2]
[313234881,1706986232663,-341.1188718,0.000228,2]
[313234882,1706986232675,-658.8811282,0.000228,2]
[313234883,1706986232684,-150.0,0.00022812,2]
[313234884,1706986232693,-211.749588,0.00022816,2]
[313234885,1706986232702,-200.0,0.00022816,2]
[313234886,1706986232711,-800.0,0.00022816,2]
[313234887,1706986232720,-150.0,0.00022845,2]
[313234888,1706986232729,-302.97572168,0.00022865,2]
[313234889,1706986232739,-150.0,0.00022875,2]
[313234890,1706986232750,-150.0,0.00022879,2]
[313234891,1706986232760,-1270.72319593,0.0002288,2]
[313234892,1706986237946,-8605.4408,0.0002288,2]
[313234893,1706986238005,-86181.99999999,0.0002288,2]
[313234894,1706986238171,-762.82137128,0.0002288,2]
[313234895,1706986238230,-2410.01001848,0.0002288,2]
[313234896,1706986238242,-112615.95657571,0.0002288,2]
[313234897,1706986238251,-150.0,0.00022883,2]
[313234898,1706986238260,-150.0,0.00022889,2]
[313234899,1706986238269,-2000.0,0.00022897,2]
[313234900,1706986238278,-1000.0,0.00022899,2]
[313234901,1706986238287,-19006.0034494,0.00022899,2]
[313234902,1706986238299,-13379.68918983,0.00022899,2]
[313234917,1706986242913,-61377.52726077,0.00022899,2]
[313234918,1706986242925,-40340.1179,0.00022899,2]
[313234919,1706986242934,-1198.65209343,0.000229,2]
[313234920,1706986242943,-168.28604614,0.000229,2]
[313234921,1706986242953,-248.30189768,0.000229,2]
[313234922,1706986242965,-5000.0,0.000229,2]
[313234923,1706986242974,-586.66241,0.000229,6]
[313234924,1706986242983,-153.31866255,0.000229,2]
[313234925,1706986242992,-325.23441092,0.000229,2]
[313234926,1706986243002,-1257.99529404,0.000229,2]
[313234927,1706986243011,-250.36986259,0.000229,2]
[313234928,1706986243021,-372.21451822,0.000229,2]
[313234929,1706986243030,-4452.17189556,0.000229,2]
[313234930,1706986243040,-206.0,0.00022929,2]
[313234931,1706986243049,-222.49401335,0.00022942,2]
[313234932,1706986243059,-150.0,0.00022983,2]
[313234933,1706986243068,-150.0,0.00022989,2]
[313234934,1706986243077,-150.0,0.00022993,2]
[313234935,1706986243087,-7999.99,0.00022997,3]
[313234936,1706986243096,-525.34573836,0.00022997,2]
[313234937,1706986243105,-2418.97396021,0.00022998,2]
[313234938,1706986243114,-284.1871695,0.00022998,2]
[313234939,1706986243124,-696.2185493,0.00022998,2]
[313234940,1706986243133,-314.91414561,0.00022998,2]
[313234941,1706986243143,-502.41371894,0.00022998,2]
[313234942,1706986243152,-1255.14945143,0.00022998,2]
[313234943,1706986243162,-199.65296929,0.00022998,2]
[313234944,1706986243171,-310.77911582,0.00022998,2]
[313234945,1706986243181,-371.95881086,0.00022998,2]
[313234946,1706986243190,-923.39,0.00022998,2]
[313234947,1706986243199,-10546.99948315,0.00022998,2]
[313234948,1706986243208,-460.79391895,0.00022998,2]
[313234949,1706986243218,-163.36273261,0.00022998,2]
[313234950,1706986243227,-24394.97966401,0.00022998,2]
[313234951,1706986243236,-155.0,0.00022998,2]
[313234952,1706986243245,-526.22979665,0.00022998,2]
[313234953,1706986243254,-266.01806587,0.00022998,2]
[313234954,1706986243264,-401.38245199,0.00022998,2]
[313234955,1706986243272,-220.91396861,0.00022998,2]
[313234956,1706986243282,-292.70291374,0.00022998,2]
[313234957,1706986243294,-583.2561244,0.00022998,2]
[313234958,1706986243303,-387.5983711,0.00022998,2]
[313234959,1706986243313,-474.20164571,0.00022998,2]
[313234960,1706986243322,-338.32247396,0.00022998,2]
[313234961,1706986243331,-1014.57449669,0.00022998,5]
[313234962,1706986243341,-1080.53,0.00022999,2]
[313234963,1706986243353,-265.32383303,0.00022999,2]
[313234964,1706986243362,-333.23809991,0.00022999,10]
[313234965,1706986243372,-7195.74020548,0.00022999,2]
[313234966,1706986243381,-746.0,0.00023,2]
[313234967,1706986243392,-140700.53621642,0.00023,3]
[313234968,1706986243401,-643623.73971254,0.00023,2]
[313234969,1706986243412,-185216.72671172,0.00023,2]
[313234970,1706986243444,-234.12906523,0.00023,2]
[313234971,1706986243625,-400.0,0.00023,2]
[313234972,1706986244207,-414.70808704,0.00023,2]
[313234973,1706986244321,-1381.79921004,0.00023,2]
[313234974,1706986244332,-33357.26154812,0.00023,2]
[313234975,1706986244343,-103748.13363798,0.00023,2]
[313234991,1706986245970,-16807.42618397,0.00023,2]
[313234992,1706986246029,-24106.02970529,0.00023,2]
[313234993,1706986246041,-74291.10602494,0.00023,2]
[313234994,1706986246054,-254.11616158,0.00023,2]
[313234995,1706986246217,-13773.56397274,0.00023,2]
[313234996,1706986246265,-1242.08502389,0.00023,2]
[313234997,1706986246277,-382.28943785,0.00023,2]
[313234998,1706986246315,-1127.36546595,0.00023,2]
[313235038,1706986292144,550.0,0.00022,3]
[313235039,1706986350626,200.0,0.00022375,2]
[313235040,1706986524180,-11242.0,0.00022542,2]
[313235041,1706986552422,9.84707229,0.00020231,2]
[313235042,1706986552443,142.61292771,0.00020231,2]
[313235043,1706986799570,840.0,0.00021935,2]
[313235044,1706987006839,152.46,0.00020013,2]
[313235045,1706987012368,1281.67712203,0.00021935,5]
[313235046,1706987024970,778.6407282,0.00021935,2]
[313235047,1706987030316,1279.04290087,0.00021935,5]
[313235048,1706987072138,-162.05839473,0.00022677,2]
[313235049,1706987072158,-1000.0,0.000227,2]
[313235050,1706987072180,-150.0,0.00022727,2]
[313235051,1706987072201,-150.0,0.00022763,2]
[313235052,1706987072222,-150.0,0.00022765,2]
[313235053,1706987072241,-152.09704412,0.0002277,2]
[313235054,1706987072262,-1500.0,0.00022776,2]
[313235055,1706987072283,-311.70538894,0.00022777,2]
[313235056,1706987106500,-14862.77395431,0.00022771,2]
[313235057,1706987106520,-25844.93153909,0.0002278,2]
[313235058,1706987304840,328.0,0.00021934,2]
[313235059,1706987343026,1281.67712203,0.00021934,5]
[313235060,1706987358873,1279.04290087,0.00021934,5]
[313235067,1706987431878,151.0,0.00020015,2]
[313235082,1706987432120,-162.05839473,0.0002268,2]
[313235083,1706987432129,-150.0,0.00022731,2]
[313235084,1706987432138,-256.32869781,0.0002277,2]
[313235085,1706987432173,-10985.67130219,0.0002277,2]
[313235086,1706987432182,-870.11323728,0.0002278,2]
[313235087,1706987432194,-533.04908277,0.0002278,2]
[313235088,1706987432283,-9000.0,0.0002278,2]
[313235089,1706987432301,-13073.99999999,0.0002278,2]
[313235090,1706987432313,-166.20374087,0.0002278,2]
[313235091,1706987432323,-488.8727,0.0002278,2]
[313235092,1706987432332,-98.77355943,0.0002278,4]
[313235093,1706987432343,-679.86716877,0.0002278,4]
[313235094,1706987432353,-275.98623396,0.00022782,2]